bitfinex-derivatives/quotes_BTCF0:USTF0_20250822
["timestamp","ask_amount","ask_price","bid_price","bid_amount"]
[1755828188206,0.02465216,112950.0,112940.0,1.64875934]
[1755828189012,0.04655216,112950.0,112940.0,1.64875934]
[1755828189315,0.02265216,112950.0,112940.0,1.64955934]
[1755828189506,0.26311361,112970.0,112940.0,1.57994934]
[1755828189808,0.34425361,112970.0,112960.0,0.40815]
[1755828190014,0.34425361,112970.0,112960.0,0.47776]
[1755828190411,0.69389295,112970.0,112960.0,0.47776]
[1755828191415,0.69789295,112970.0,112960.0,0.47776]
[1755828191714,0.71053416,112970.0,112960.0,0.47776]
[1755828191915,0.34925361,112970.0,112960.0,0.47776]
[1755828192116,0.69889295,112970.0,112960.0,0.47776]
[1755828192911,0.31455361,112970.0,112960.0,0.82739934]
[1755828193121,0.31455361,112970.0,112960.0,1.18819934]
[1755828193617,0.19091,112970.0,112960.0,1.18819934]
[1755828195812,0.26050711,112970.0,112960.0,1.18819934]
[1755828197418,0.18145,112970.0,112960.0,1.18819934]
[1755828197619,0.15955,112970.0,112960.0,2.00939934]
[1755828198416,0.15955,112970.0,112960.0,2.02727119]
[1755828201718,0.07759,112970.0,112960.0,2.02727119]
[1755828208122,0.07459,112970.0,112960.0,2.02727119]
[1755828208822,0.07459,112970.0,112960.0,2.29287119]
[1755828211019,0.07259,112970.0,112960.0,2.29387119]
[1755828211220,0.07359,112970.0,112960.0,2.29387119]
[1755828211919,0.07259,112970.0,112960.0,2.29387119]
[1755828212220,0.10337,112970.0,112960.0,1.94423185]
[1755828212422,0.19314,112970.0,112960.0,2.29387119]
[1755828213818,0.19314,112970.0,112960.0,2.02827119]
[1755828214014,0.15873,112970.0,112960.0,2.02827119]
[1755828214623,0.17825,112970.0,112960.0,2.02827119]
[1755828217525,0.14384,112970.0,112960.0,2.02827119]
[1755828218125,0.11904,112970.0,112960.0,2.02827119]
[1755828219925,0.11904,112970.0,112960.0,2.29387119]
[1755828222529,0.09795,112970.0,112960.0,2.29387119]
[1755828222719,0.10337,112970.0,112960.0,2.29387119]
[1755828222924,0.07259,112970.0,112960.0,2.29387119]
[1755828223226,0.07259,112970.0,112960.0,1.94423185]
[1755828223434,0.19314,112970.0,112960.0,2.29387119]
[1755828224327,0.17825,112970.0,112960.0,2.29387119]
[1755828224528,0.11904,112970.0,112960.0,2.29387119]
[1755828224835,0.10337,112970.0,112960.0,2.29387119]
[1755828225132,0.07259,112970.0,112960.0,2.29387119]
[1755828228637,0.15455,112970.0,112960.0,2.29387119]
[1755828230037,0.17658,112970.0,112960.0,2.29387119]
[1755828230233,0.18627,112970.0,112960.0,2.29387119]
[1755828232140,0.14578,112970.0,112960.0,2.29387119]
[1755828232338,0.14534,112970.0,112960.0,2.29387119]
[1755828233038,0.08196,112970.0,112960.0,2.29387119]
[1755828233839,0.07951,112970.0,112960.0,2.29387119]
[1755828234242,0.07863,112970.0,112960.0,2.29387119]
[1755828234633,0.04971,112970.0,112960.0,2.29387119]
[1755828235240,0.06374627,112970.0,112960.0,2.29387119]
[1755828235644,0.04422,112970.0,112960.0,2.29387119]
[1755828236241,0.0151,112990.0,112980.0,0.12008]
[1755828236445,0.04662,112990.0,112980.0,1.19131934]
[1755828236644,0.06614771,112990.0,112980.0,1.19131934]
[1755828236946,0.07758935,112990.0,112980.0,1.19131934]
[1755828237642,0.07858935,112990.0,112980.0,1.19131934]
[1755828238036,0.06714771,112990.0,112980.0,1.19131934]
[1755828238343,0.11651771,112990.0,112980.0,1.19131934]
[1755828238846,0.14101771,112990.0,112980.0,1.19131934]
[1755828240146,0.21155132,112990.0,112980.0,1.19131934]
[1755828240348,0.22301646,112990.0,112980.0,1.19131934]
[1755828241246,0.21155132,112990.0,112980.0,1.19131934]
[1755828242149,0.18705132,112990.0,112980.0,1.19131934]
[1755828243538,0.18705132,112990.0,112980.0,0.84168]
[1755828243738,0.18705132,112990.0,112980.0,1.19131934]
[1755828244339,0.18705132,112990.0,112980.0,1.54025834]
[1755828245148,0.12358132,112990.0,112980.0,1.54025834]
[1755828245344,0.09206132,112990.0,112980.0,1.54025834]
[1755828246248,0.12358132,112990.0,112980.0,1.54025834]
[1755828246641,0.15768132,112990.0,112980.0,1.54025834]
[1755828247039,0.53634049,112990.0,112980.0,0.84168]
[1755828247245,0.53634049,112990.0,112980.0,1.54025834]
[1755828248248,0.18705132,112990.0,112980.0,1.54025834]
[1755828248449,0.53634049,112990.0,112980.0,1.54025834]
[1755828249355,0.56084049,112990.0,112980.0,1.15604917]
[1755828249550,0.56084049,112990.0,112980.0,0.84168]
[1755828249762,0.56084049,112990.0,112980.0,1.19096917]
[1755828252254,0.21155132,112990.0,112980.0,0.84168]
[1755828252449,0.56091933,112990.0,112980.0,0.84168]
[1755828252849,0.74699933,112990.0,112980.0,0.84168]
[1755828257954,0.74699933,112990.0,112980.0,0.08516]
[1755828258158,0.74699933,112990.0,112980.0,0.05461]
[1755828259367,1.03492933,112990.0,112970.0,0.39875]
[1755828259567,1.24202801,112980.0,112970.0,0.47899]
[1755828259763,1.61092373,112980.0,112970.0,0.43235]
[1755828259964,1.61092373,112980.0,112970.0,0.02314]
[1755828260155,1.97172373,112980.0,112970.0,0.02314]
[1755828260362,0.04788,112970.0,112960.0,0.13606185]
[1755828260660,0.48915572,112970.0,112960.0,0.13606185]
[1755828261568,0.48915572,112970.0,112960.0,0.13706185]
[1755828261767,0.69295572,112970.0,112960.0,0.13706185]
[1755828262961,0.31920771,112970.0,112960.0,0.48642986]
[1755828263163,0.31920771,112970.0,112960.0,0.13706185]
[1755828263858,0.66857572,112970.0,112960.0,0.13706185]
[1755828264473,0.63478572,112970.0,112960.0,0.13706185]
[1755828264670,0.66857572,112970.0,112960.0,0.13706185]
[1755828265871,0.69295572,112970.0,112960.0,0.13706185]
[1755828267867,0.48915572,112970.0,112960.0,0.13706185]
[1755828269868,0.48915572,112970.0,112960.0,0.49786185]
[1755828270274,0.08161771,112970.0,112960.0,0.84722986]
[1755828270471,0.11540771,112970.0,112960.0,0.84722986]
[1755828271576,0.01952771,112970.0,112960.0,0.84722986]
[1755828271778,1.03312771,112980.0,112960.0,0.84722986]
[1755828271971,1.03312771,112980.0,112970.0,0.75857801]
[1755828272174,1.03312771,112980.0,112970.0,0.47899]
[1755828272379,1.04717771,112980.0,112970.0,0.47899]
[1755828272771,1.43033572,112980.0,112970.0,0.47899]
[1755828273472,0.22693771,112980.0,112970.0,0.47899]
[1755828273668,0.26072771,112980.0,112970.0,0.47899]
[1755828274275,0.22693771,112980.0,112970.0,0.82835801]
[1755828274471,0.19751771,112980.0,112970.0,0.82835801]
[1755828276585,0.23130771,112980.0,112970.0,0.82835801]
[1755828276784,0.05219771,112980.0,112970.0,0.47899]
[1755828277077,0.05219771,112980.0,112970.0,0.82835801]
[1755828277283,0.04223771,112980.0,112970.0,0.82835801]
[1755828277784,0.05219771,112980.0,112970.0,0.82835801]
[1755828278084,0.05248204,112980.0,112970.0,0.82835801]
[1755828278680,0.05248204,112980.0,112970.0,0.47899]
[1755828278881,0.05248204,112980.0,112970.0,0.82835801]
[1755828279080,0.02081204,112980.0,112970.0,0.82835801]
[1755828279385,0.04252204,112980.0,112970.0,0.82835801]
[1755828279983,0.02081204,112980.0,112970.0,0.82835801]
[1755828280774,0.04252204,112980.0,112970.0,0.82835801]
[1755828281475,0.02081204,112980.0,112970.0,0.82835801]
[1755828283492,0.04252204,112980.0,112970.0,0.82835801]
[1755828284394,0.02081204,112980.0,112970.0,0.82835801]
[1755828290293,0.02081204,112980.0,112970.0,0.82833609]
[1755828292396,0.001,112980.0,112970.0,0.82833609]
[1755828294096,0.02235,112980.0,112970.0,0.82833609]
[1755828294407,0.37169609,112980.0,112970.0,0.82833609]
[1755828295598,0.40040325,112980.0,112970.0,0.82833609]
[1755828295798,0.41498609,112980.0,112970.0,0.82833609]
[1755828296696,0.04685,112980.0,112970.0,0.82833609]
[1755828296904,0.44457609,112980.0,112970.0,0.82833609]
[1755828297096,0.43042609,112980.0,112970.0,0.82833609]
[1755828298002,0.03141,112980.0,112970.0,0.82833609]
[1755828298304,0.12363541,112980.0,112970.0,0.82833609]
[1755828298602,0.10398,112980.0,112970.0,0.82833609]
[1755828299294,0.12364013,112980.0,112970.0,0.82833609]
[1755828299704,0.15787013,112980.0,112970.0,0.82833609]
[1755828300700,0.12364013,112980.0,112970.0,0.82833609]
[1755828302203,0.10229013,112980.0,112970.0,0.82833609]
[1755828302397,0.09323013,112980.0,112970.0,0.82833609]
[1755828303902,0.09323653,112980.0,112970.0,1.17768218]
[1755828304101,0.07357,112980.0,112970.0,1.17768218]
[1755828305906,0.07357,112980.0,112970.0,1.24109021]
[1755828306109,0.07357,112980.0,112970.0,1.17768218]
[1755828306298,0.03857,112980.0,112970.0,1.24109021]
[1755828307101,0.03857,112980.0,112970.0,1.17768218]
[1755828309304,0.07158,112990.0,112970.0,1.10790218]
[1755828309509,0.07158,112990.0,112980.0,1.97064628]
[1755828311712,0.07158,112990.0,112980.0,1.98144256]
[1755828311911,0.07258,112990.0,112980.0,1.98144256]
[1755828315417,0.001,112990.0,112980.0,1.98144256]
[1755828317315,0.07269,112990.0,112980.0,1.98144256]
[1755828318809,0.07269,112990.0,112980.0,2.33078865]
[1755828319117,0.07269,112990.0,112980.0,1.98144256]
[1755828320517,0.07269,112990.0,112980.0,2.33078865]
[1755828320817,0.30955,113020.0,113010.0,0.08155]
[1755828321117,0.34349,113020.0,113010.0,1.99134547]
[1755828321914,0.11949,113020.0,113010.0,2.34069156]
[1755828322416,0.07187,113020.0,113010.0,2.34012378]
[1755828322620,0.07287,113020.0,113010.0,2.34012378]
[1755828322814,0.10681,113020.0,113010.0,2.34012378]
[1755828323013,0.11949,113020.0,113010.0,2.34012378]
[1755828323208,0.11949,113020.0,113010.0,2.34112378]
[1755828324117,0.04728,113020.0,113010.0,2.34112378]
[1755828324310,0.11949,113030.0,113020.0,0.08155]
[1755828324512,0.13922741,113030.0,113020.0,0.44235]
[1755828324714,0.13922741,113030.0,113020.0,0.7914122]
[1755828325312,0.11156,113040.0,113030.0,0.06055]
[1755828325511,0.11156,113040.0,113030.0,0.79049581]
[1755828325712,0.23105,113040.0,113030.0,0.86246265]
[1755828325924,0.23105,113040.0,113030.0,0.51340045]
[1755828326309,0.5801122,113040.0,113030.0,0.44143361]
[1755828326514,0.5801122,113040.0,113030.0,0.40646361]
[1755828326715,0.5801122,113040.0,113030.0,0.41685361]
[1755828326923,0.23105,113040.0,113030.0,0.79049581]
[1755828327223,0.23105,113040.0,113030.0,0.44143361]
[1755828327718,0.5801122,113040.0,113030.0,0.41685361]
[1755828327917,0.4685522,113040.0,113030.0,0.38088361]
[1755828328117,0.8184144,113040.0,113030.0,0.38088361]
[1755828328418,0.8184144,113040.0,113020.0,0.3608]
[1755828328619,1.2972322,113030.0,113020.0,0.3608]
[1755828328814,0.0386,113010.0,113000.0,0.39677]
[1755828329015,0.4685522,113010.0,113000.0,0.39677]
[1755828329522,0.4685522,113010.0,113000.0,0.42135]
[1755828329823,0.11949,113010.0,113000.0,0.7704122]
[1755828330217,0.11949,113010.0,113000.0,0.7734122]
[1755828330414,0.04762,113020.0,113000.0,1.6013722]
[1755828330613,0.04762,113020.0,113010.0,0.7704122]
[1755828330614,0.08555,113020.0,113010.0,0.7704122]
[1755828330818,0.0336,113020.0,113010.0,0.7704122]
[1755828331020,0.30373,113030.0,113020.0,0.06055]
[1755828331321,0.30373,113030.0,113020.0,0.7704122]
[1755828331616,0.30373,113030.0,113020.0,0.42135]
[1755828331820,0.6527922,113030.0,113020.0,0.42135]
[1755828332120,0.30373,113030.0,113020.0,0.42135]
[1755828332308,0.6527922,113030.0,113020.0,0.42135]
[1755828333419,0.6527922,113030.0,113020.0,0.38638]
[1755828333627,0.6527922,113030.0,113020.0,0.3706]
[1755828333824,0.4685522,113030.0,113020.0,0.3706]
[1755828334025,0.4693522,113030.0,113020.0,0.3608]
[1755828334320,0.11949,113020.0,113010.0,0.39677]
[1755828334627,0.11949,113020.0,113010.0,0.42135]
[1755828334817,0.4685522,113020.0,113010.0,0.42135]
[1755828335017,0.07187,113020.0,113010.0,0.79014071]
[1755828335318,0.6310422,113040.0,113020.0,0.06055]
[1755828335319,0.11949,113030.0,113020.0,0.06055]
[1755828335526,0.11949,113030.0,113020.0,0.7704122]
[1755828335527,0.07187,113030.0,113020.0,0.7704122]
[1755828335915,0.10581,113030.0,113020.0,0.7704122]
[1755828336519,0.05614,113030.0,113020.0,0.7704122]
[1755828338126,0.09008,113030.0,113020.0,0.7704122]
[1755828338326,0.05614,113030.0,113020.0,0.7704122]
[1755828338525,0.05614,113030.0,113020.0,0.42135]
[1755828338726,0.05614,113030.0,113020.0,0.7704122]
[1755828342324,0.05614,113030.0,113020.0,0.42135]
[1755828342526,0.05614,113030.0,113020.0,0.7704122]
[1755828343523,0.09008,113030.0,113020.0,0.7704122]
[1755828343929,0.05614,113030.0,113020.0,0.7704122]
[1755828344426,0.05614,113040.0,113030.0,0.06055]
[1755828344723,0.05614,113040.0,113030.0,0.7704122]
[1755828344928,0.05614,113040.0,113030.0,1.5976922]
[1755828344929,0.04695,113040.0,113030.0,1.5976922]
[1755828345133,0.04695,113040.0,113030.0,1.61728213]
[1755828345328,0.37457,113050.0,113040.0,0.06055]
[1755828345630,0.39426327,113050.0,113040.0,0.42135]
[1755828346520,0.74332547,113050.0,113040.0,0.42135]
[1755828346718,0.48824547,113050.0,113040.0,0.42135]
[1755828347026,0.48904547,113050.0,113040.0,0.38638]
[1755828347219,0.48904547,113050.0,113040.0,0.3608]
[1755828348829,0.62012547,113050.0,113040.0,0.3608]
[1755828350828,0.96918767,113050.0,113030.0,0.39077993]
[1755828351131,0.96918767,113050.0,113030.0,0.38952993]
[1755828351132,1.6429144,113040.0,113030.0,0.38952993]
[1755828351326,1.66340767,113040.0,113030.0,0.38038993]
[1755828351530,1.66340767,113040.0,113030.0,0.01958993]
[1755828351835,2.02340767,113040.0,113030.0,0.01958993]
[1755828352038,2.02340767,113040.0,113010.0,0.43518851]
[1755828352226,0.3976322,113020.0,113010.0,0.48098851]
[1755828352426,0.48674547,113020.0,113010.0,0.48098851]
[1755828353225,0.48674547,113020.0,113010.0,0.43671851]
[1755828353420,0.48674547,113020.0,113010.0,0.45630851]
[1755828354031,0.48674547,113020.0,113010.0,0.45930851]
[1755828354532,0.58238547,113020.0,113010.0,0.45930851]
[1755828355232,1.40922547,113020.0,113010.0,0.46030851]
[1755828356335,1.07037785,113020.0,113010.0,0.43032851]
[1755828356529,1.41944005,113020.0,113010.0,0.46030851]
[1755828356730,1.40922547,113020.0,113010.0,0.46030851]
[1755828357135,1.41937178,113020.0,113010.0,0.46030851]
[1755828357323,1.40922547,113020.0,113010.0,0.46030851]
[1755828359632,1.40922547,113020.0,113010.0,0.38352851]
[1755828360440,1.40922547,113020.0,113010.0,0.43334851]
[1755828360629,1.40922547,113020.0,113010.0,0.45930851]
[1755828360834,1.40922547,113020.0,113010.0,0.43971851]
[1755828361335,1.40922547,113020.0,113010.0,0.3628]
[1755828361734,1.40922547,113020.0,113010.0,0.38243715]
[1755828362128,0.58238547,113020.0,113010.0,0.48289715]
[1755828362328,0.55049547,113020.0,113010.0,0.83195935]
[1755828362631,0.23332327,113020.0,113010.0,0.83195935]
[1755828363034,0.58238547,113020.0,113010.0,0.83195935]
[1755828363536,0.58238547,113020.0,113010.0,0.48289715]
[1755828363741,0.23332327,113020.0,113010.0,0.48289715]
[1755828363933,0.58238547,113020.0,113010.0,0.48289715]
[1755828365841,0.23332327,113020.0,113010.0,0.48289715]
[1755828366140,0.58238547,113020.0,113010.0,0.48289715]
[1755828367344,0.23332327,113020.0,113010.0,0.48289715]
[1755828367644,0.20143327,113020.0,113010.0,0.83195935]
[1755828367843,0.23332327,113020.0,113010.0,0.83195935]
[1755828368045,0.13768327,113020.0,113010.0,0.83195935]
[1755828370346,0.10579327,113020.0,113010.0,0.83195935]
[1755828370551,0.13768327,113020.0,113010.0,0.83195935]
[1755828370944,0.13768327,113020.0,113010.0,0.48289715]
[1755828371448,0.48674547,113020.0,113010.0,0.48289715]
[1755828372348,0.13768327,113020.0,113010.0,0.48289715]
[1755828372543,0.13768327,113020.0,113010.0,0.83195935]
[1755828373140,0.48674547,113020.0,113010.0,0.48289715]
[1755828373847,0.13768327,113020.0,113010.0,0.48289715]
[1755828374048,0.48674547,113020.0,113010.0,0.48289715]
[1755828378050,0.48674547,113020.0,113010.0,0.38243715]
[1755828378545,0.48674547,113020.0,113010.0,0.46054715]
[1755828378948,0.74006547,113020.0,113010.0,0.46054715]
[1755828379750,0.74006547,113020.0,113010.0,0.48503715]
[1755828380052,0.74006547,113020.0,113010.0,0.46054715]
[1755828380552,0.39100327,113020.0,113010.0,0.46054715]
[1755828380743,0.74006547,113020.0,113010.0,0.48503715]
[1755828381542,1.56742547,113020.0,113010.0,0.48503715]
[1755828381739,0.48674547,113020.0,113010.0,0.48503715]
[1755828381942,0.13768327,113020.0,113010.0,0.83409935]
[1755828382146,0.07598327,113020.0,113010.0,0.83409935]
[1755828383854,0.10769327,113020.0,113010.0,0.83409935]
[1755828384050,0.12293327,113020.0,113010.0,0.83409935]
[1755828384254,0.13745327,113020.0,113010.0,0.83409935]
[1755828384753,0.12293327,113020.0,113010.0,0.83409935]
[1755828385152,0.01969327,113020.0,113010.0,1.66289935]
[1755828385356,0.04485,113020.0,113010.0,1.66289935]
[1755828385557,0.07441327,113020.0,113010.0,1.66289935]
[1755828385751,0.12136327,113020.0,113010.0,1.66289935]
[1755828385954,0.13588327,113020.0,113010.0,1.66289935]
[1755828386755,0.06996,113020.0,113010.0,1.66289935]
[1755828387057,0.05472,113020.0,113010.0,1.66289935]
[1755828388055,0.08643,113020.0,113010.0,1.31383715]
[1755828388360,0.05472,113020.0,113010.0,1.66289935]
[1755828388558,0.08643,113020.0,113010.0,1.66289935]
[1755828389457,0.05472,113020.0,113010.0,1.66289935]
[1755828389856,0.10167,113020.0,113010.0,1.31383715]
[1755828390059,0.11619,113020.0,113010.0,1.66289935]
[1755828391352,0.11619,113020.0,113010.0,1.92849935]
[1755828391656,0.11619,113020.0,113010.0,1.57943715]
[1755828391853,0.11619,113020.0,113010.0,1.92849935]
[1755828393055,0.13598167,113020.0,113010.0,1.92849935]
[1755828394663,0.48504387,113020.0,113010.0,1.92849935]
[1755828395260,0.48504387,113020.0,113010.0,1.09969935]
[1755828395261,0.13598021,113020.0,113010.0,1.09969935]
[1755828397351,0.13598021,113020.0,113010.0,0.83409935]
[1755828398258,0.11619,113020.0,113010.0,0.83409935]
[1755828399367,0.08448,113020.0,113010.0,0.83409935]
[1755828399565,0.06996,113020.0,113010.0,0.83409935]
[1755828402166,0.05472,113020.0,113010.0,0.48503715]
[1755828402365,0.08643,113020.0,113010.0,0.83409935]
[1755828403662,0.10167,113020.0,113010.0,0.83409935]
[1755828403863,0.11619,113020.0,113010.0,0.83409935]
[1755828404767,0.11619,113020.0,113010.0,0.48503715]
[1755828404967,0.11619,113020.0,113010.0,0.83409935]
[1755828405863,0.4652522,113020.0,113010.0,0.48503715]
[1755828407164,0.11619,113020.0,113010.0,0.48503715]
[1755828407373,0.4652522,113020.0,113010.0,0.48503715]
[1755828408168,0.48527098,113020.0,113010.0,0.48503715]
[1755828408470,0.13620878,113020.0,113010.0,0.48503715]
[1755828408670,0.48527098,113020.0,113010.0,0.48503715]
[1755828410164,0.13620878,113020.0,113010.0,0.48503715]
[1755828410366,0.48527098,113020.0,113010.0,0.48503715]
[1755828410766,0.48527098,113020.0,113010.0,0.83409935]
[1755828411573,0.48527098,113020.0,113010.0,0.48503715]
[1755828414675,0.48527098,113020.0,113010.0,0.83409935]
[1755828416072,0.48527098,113020.0,113010.0,0.48503715]
[1755828416779,0.48527098,113020.0,113010.0,0.83409935]
[1755828419780,0.08997878,113020.0,113010.0,0.83409935]
[1755828420267,0.07420878,113020.0,113010.0,0.83409935]
[1755828420468,0.05296878,113020.0,113010.0,1.65873935]
[1755828420872,0.07420878,113020.0,113010.0,1.65873935]
[1755828421272,0.02001878,113020.0,113010.0,1.65873935]
[1755828422182,0.02001878,113020.0,113010.0,1.30967715]
[1755828422384,0.02001878,113020.0,113010.0,1.65873935]
[1755828423574,0.13968878,113020.0,113010.0,1.65873935]
[1755828423974,0.04125878,113020.0,113010.0,1.65873935]
[1755828424171,0.02001878,113020.0,113010.0,1.65873935]
[1755828424581,0.07430878,113020.0,113010.0,1.65873935]
[1755828424784,0.13968878,113020.0,113010.0,1.30967715]
[1755828424978,0.13968878,113020.0,113010.0,1.65873935]
[1755828425176,0.09060878,113020.0,113010.0,1.65873935]
[1755828425978,0.07430878,113020.0,113010.0,1.65873935]
[1755828426178,0.04324878,113020.0,113010.0,1.65873935]
[1755828426374,0.02001878,113020.0,113010.0,1.65873935]
[1755828426581,0.06448878,113020.0,113010.0,1.30967715]
[1755828426774,0.06448878,113020.0,113010.0,1.65873935]
[1755828426974,0.07430878,113020.0,113010.0,1.65873935]
[1755828428276,0.02001878,113020.0,113010.0,1.65873935]
[1755828429384,0.04324878,113020.0,113010.0,1.65873935]
[1755828429884,0.07430878,113020.0,113010.0,1.65873935]
[1755828430778,0.07430878,113020.0,113010.0,1.30967715]
[1755828430981,0.07430878,113020.0,113010.0,1.65873935]
[1755828435285,0.10886878,113020.0,113010.0,1.65873935]
[1755828435788,0.07430878,113020.0,113010.0,1.65873935]
[1755828437897,0.05306878,113020.0,113010.0,1.65873935]
[1755828438299,0.07599878,113020.0,113010.0,1.65873935]
[1755828439394,0.02001878,113020.0,113010.0,1.65873935]
[1755828439599,0.02001878,113020.0,113010.0,2.00780155]
[1755828440393,0.3728242,113030.0,113020.0,0.10082]
[1755828440598,0.41612527,113030.0,113020.0,1.1597084]
[1755828441098,0.42567527,113030.0,113020.0,1.1597084]
[1755828442300,0.07663107,113030.0,113020.0,0.81067686]
[1755828443094,0.02037107,113030.0,113020.0,0.46162]
[1755828443400,0.02037107,113030.0,113020.0,0.81067686]
[1755828443589,0.32366,113040.0,113020.0,0.47162023]
[1755828443799,0.39249508,113040.0,113030.0,0.81067686]
[1755828444099,0.39249508,113040.0,113030.0,0.46162]
[1755828445205,0.39249508,113040.0,113030.0,0.81067686]
[1755828445503,0.34589508,113040.0,113030.0,0.81067686]
[1755828445703,0.37772508,113040.0,113030.0,0.81067686]
[1755828446093,0.34589508,113040.0,113030.0,0.81067686]
[1755828446598,0.32990508,113040.0,113030.0,0.81067686]
[1755828446796,0.29742508,113040.0,113030.0,0.81067686]
[1755828447404,0.27621,113040.0,113030.0,1.28982]
[1755828447590,0.27621,113040.0,113030.0,1.63887686]
[1755828447788,0.27621,113040.0,113030.0,1.28982]
[1755828447994,0.29999,113040.0,113030.0,1.28982]
[1755828449001,0.29999,113040.0,113030.0,1.63887686]
[1755828449597,0.25328,113040.0,113030.0,1.63887686]
[1755828450202,0.32043674,113040.0,113030.0,1.63887686]
[1755828450400,0.29999,113040.0,113030.0,1.63887686]
[1755828450604,0.33182,113040.0,113030.0,1.63887686]
[1755828450803,0.30954,113040.0,113030.0,1.63887686]
[1755828452498,0.30954,113040.0,113030.0,1.28982]
[1755828452697,0.30954,113040.0,113030.0,1.63887686]
[1755828453603,0.34137,113040.0,113030.0,1.28982]
[1755828453801,0.34137,113040.0,113030.0,1.63887686]
[1755828454207,0.37213,113040.0,113030.0,1.28982]
[1755828455606,0.37213,113040.0,113030.0,1.63887686]
[1755828456207,0.37213,113040.0,113030.0,0.81067686]
[1755828457102,0.37213,113040.0,113030.0,0.46162]
[1755828457309,0.37213,113040.0,113030.0,0.81067686]
[1755828457801,0.37213,113040.0,113030.0,0.46162]
[1755828458804,0.37213,113040.0,113030.0,0.81067686]
[1755828460108,0.72118686,113040.0,113030.0,0.41756]
[1755828460507,0.72118686,113040.0,113030.0,0.43715]
[1755828461107,0.72118686,113040.0,113030.0,0.46162]
[1755828461408,0.37213,113040.0,113030.0,0.46162]
[1755828461605,0.72118686,113040.0,113030.0,0.46162]
[1755828462407,0.72117437,113040.0,113030.0,0.46162]
[1755828462603,0.72117437,113040.0,113030.0,0.81066437]
[1755828463311,0.72117437,113040.0,113030.0,0.46162]
[1755828463510,0.72117437,113040.0,113030.0,0.81066437]
[1755828464210,0.74161373,113040.0,113030.0,0.81066437]
[1755828464810,0.39256936,113040.0,113030.0,0.81066437]
[1755828465115,0.39256936,113040.0,113030.0,0.46162]
[1755828465504,1.0906581,113040.0,113030.0,0.81066437]
[1755828465699,0.39256936,113040.0,113030.0,0.81066437]
[1755828465904,1.0906581,113040.0,113030.0,0.81066437]
[1755828466710,0.74161373,113040.0,113030.0,0.81066437]
[1755828467509,0.74161373,113040.0,113030.0,0.46162]
[1755828467715,0.74161373,113040.0,113030.0,0.81066437]
[1755828468213,1.0906581,113040.0,113030.0,0.81066437]
[1755828468414,1.0906581,113040.0,113030.0,0.46162]
[1755828468617,1.0906581,113040.0,113030.0,0.38573]
[1755828468818,1.0906581,113040.0,113030.0,0.36997]
[1755828469010,1.9201381,113040.0,113030.0,0.36997]
[1755828469206,2.26918247,113040.0,113030.0,0.3608]
[1755828469410,1.9201381,113040.0,113030.0,0.3608]
[1755828470215,2.19880247,113040.0,113020.0,0.64599869]
[1755828470411,0.81583874,113030.0,113020.0,0.64599869]
[1755828470611,0.8362781,113030.0,113020.0,0.64599869]
[1755828471716,0.13818936,113030.0,113020.0,0.68958869]
[1755828471911,0.63067373,113030.0,113020.0,0.69871869]
[1755828472111,0.63067373,113030.0,113020.0,0.72527869]
[1755828472409,0.28162936,113030.0,113020.0,0.72527869]
[1755828472610,0.63067373,113030.0,113020.0,1.09725306]
[1755828474116,0.63067373,113030.0,113020.0,0.74820869]
[1755828474320,0.63067373,113030.0,113020.0,0.83165306]
[1755828475221,0.63067373,113030.0,113020.0,0.48260869]
[1755828475425,0.63067373,113030.0,113020.0,0.83165306]
[1755828476310,0.63067373,113030.0,113020.0,0.48260869]
[1755828476621,0.63067373,113030.0,113020.0,0.83165306]
[1755828480024,0.28162936,113030.0,113020.0,0.83165306]
[1755828480225,0.63067373,113030.0,113020.0,0.83165306]
[1755828480622,0.61023437,113030.0,113020.0,0.83165306]
[1755828480820,0.61023437,113030.0,113020.0,1.19245306]
[1755828481125,0.6306536,113030.0,113020.0,1.19245306]
[1755828482424,0.63065313,113030.0,113020.0,1.19245306]
[1755828482825,0.28160876,113030.0,113020.0,1.19245306]
[1755828483128,0.63065313,113030.0,113020.0,1.19245306]
[1755828484625,0.48721313,113030.0,113020.0,1.19245306]
[1755828485428,0.46679437,113030.0,113020.0,1.19245306]
[1755828485816,0.48721464,113030.0,113020.0,1.19245306]
[1755828486832,0.48721464,113030.0,113020.0,0.84340869]
[1755828487130,0.48721464,113030.0,113020.0,1.19245306]
[1755828487428,0.09017027,113030.0,113020.0,2.02121306]
[1755828487630,0.43921464,113030.0,113020.0,2.02121306]
[1755828487928,0.43921464,113030.0,113020.0,2.37025743]
[1755828488127,0.43921464,113030.0,113020.0,2.02121306]
[1755828488330,0.48721464,113030.0,113020.0,2.02121306]
[1755828488731,0.39202464,113030.0,113020.0,2.37025743]
[1755828489028,0.39467437,113030.0,113020.0,2.37025743]
[1755828489230,0.40386437,113030.0,113020.0,2.02121306]
[1755828489431,0.40386437,113030.0,113020.0,2.37025743]
[1755828490127,0.40386437,113030.0,113020.0,2.02121306]
[1755828490430,0.42428868,113030.0,113020.0,2.37025743]
[1755828490626,0.42428868,113030.0,113020.0,2.02121306]
[1755828491232,0.42428868,113030.0,113020.0,2.37025743]
[1755828491431,0.39202868,113030.0,113020.0,2.37025743]
[1755828491919,0.04298431,113030.0,113020.0,2.37025743]
[1755828492232,0.34904437,113030.0,113020.0,2.31734743]
[1755828492426,0.07006,113040.0,113020.0,2.31734743]
[1755828492619,0.34904437,113030.0,113020.0,1.60750306]
[1755828492817,0.34904437,113030.0,113020.0,2.02121306]
[1755828493021,0.41910437,113040.0,113020.0,1.96830306]
[1755828493022,0.07006,113040.0,113020.0,1.96830306]
[1755828493237,0.13817786,113040.0,113030.0,0.46201]
[1755828493733,0.8362666,113040.0,113030.0,0.81105437]
[1755828494121,0.13817786,113040.0,113030.0,0.81105437]
[1755828494326,0.8362666,113040.0,113030.0,0.81105437]
[1755828494928,0.48722223,113040.0,113030.0,0.81105437]
[1755828495233,0.13817786,113040.0,113030.0,0.81105437]
[1755828495636,0.8362666,113040.0,113030.0,0.81105437]
[1755828496526,0.8362666,113040.0,113030.0,0.46201]
[1755828496929,0.8362666,113040.0,113030.0,0.81105437]
[1755828497129,0.8362666,113040.0,113030.0,0.81205437]
[1755828497737,1.6648666,113040.0,113030.0,0.46301]
[1755828498036,1.6646666,113040.0,113030.0,0.46301]
[1755828498225,1.6646666,113040.0,113030.0,0.3618]
[1755828499636,0.96657786,113040.0,113030.0,0.42957]
[1755828499837,1.6646666,113040.0,113030.0,0.43996]
[1755828500240,1.6646666,113040.0,113030.0,0.46371]
[1755828502145,1.6646666,113040.0,113030.0,0.43996]
[1755828505138,0.96657786,113040.0,113030.0,0.43996]
[1755828505444,1.6646666,113040.0,113030.0,0.43996]
[1755828505646,1.6646666,113040.0,113030.0,0.42957]
[1755828506037,1.6646666,113040.0,113030.0,0.43996]